Cogmind - Beta 16.1 @@@ ROGUE MODE // 2026.02.26 @ 22:46:37 Player: AngelSpirit Result: Destroyed by Golem with Assembled Focal Cannon Performance ------------- Evolutions (3) 1500 Regions Visited (8) 1600 Robots Destroyed (131) 655 Value Destroyed (3135) 3135 Prototype IDs (34) 680 Alien Tech Used (0) 0 Bonus (3310) 3310 TOTAL SCORE: 10880 Bonus ------- High Alert Combat Kills 26 Follower Combat Kills 447 Delivered SUBCON Basin 2000 Destroyed Z-Imprinter 1000 Friendly Fire -163 Cogmind --------- Core Integrity 0/700 Matter 300/300 Energy 469/470 System Corruption 0% Temperature Cool (12) Movement Hovering (144) Location -7/Deep Caves Parts ------- > --- POWER (2) -------- Antimatter-DM Reactor > --- PROPULSION (4) --- Hovering Glidesys Exoskeleton > --- UTILITY (4) ------ Armored Scrap Engine Experimental Reaction Control System > --- WEAPON (3) ------- Hpw. Kinetic Slug Construct/C > --- INVENTORY (5) ---- Huge Storage Unit Zionite Metafield Generator Tech Extrapolator Zionite Phaser-S Multitool Peak State ------------ > --- POWER ------------ Antimatter-DM Reactor > --- PROPULSION ------- Hovering Glidesys Exoskeleton > --- UTILITY ---------- Armored Scrap Engine Experimental Reaction Control System Zionite Light Carapace > --- WEAPON ----------- Proton Missile Launcher Hpw. Kinetic Slug Construct/C > --- INVENTORY -------- Huge Storage Unit Zionite Metafield Generator Tech Extrapolator Zionite Phaser-S Multitool [Rating: 84] Favorites ----------- Power Constructs Engine Light Ion Engine Reactor Constructs Propulsion Constructs Treads Spiked Medium Treads Leg Cargo Legs Wheel Wheel Hover Unit Constructs Utility Armored Scrap Engine Device Armored Scrap Engine Storage Large Storage Unit Processor Improved Targeting Computer Hackware Hacking Suite Protection Hardened Light Armor Plating Weapon Constructs Energy Gun Subdweller Laser Energy Cannon Subdweller Beam Cannon Ballistic Gun Constructs Ballistic Cannon Constructs Launcher Missile Launcher Special Weapon Mining Laser Impact Weapon Impact Mace Slashing Weapon Greatsword Piercing Weapon Makeshift Spear Build | -11 -10 -10 -9 -7 -7 -7 -7 -7 ------- Run | Yrd Mat Sub Rec Fac Low Low Zio Dee Slots Evolved 6 | . . . . 6 . . . . Power 1 | . . . . 1 . . . . Propulsion 2 | . . . . 2 . . . . Utility 2 | . . . . 2 . . . . Weapon 1 | . . . . 1 . . . . Parts Attached 70 | 7 12 13 5 14 2 2 2 13 Power 2 | 1 1 . . . . . . . Engine 2 | 1 1 . . . . . . . Core . | . . . . . . . . . Reactor . | . . . . . . . . . Propulsion 7 | 2 1 1 . . . . 1 2 Treads 1 | . . . . . . . 1 . Leg 2 | . . 1 . . . . . 1 Wheel 3 | 2 1 . . . . . . . Hover 1 | . . . . . . . . 1 Flight . | . . . . . . . . . Utility 27 | 2 2 4 3 4 2 1 . 9 Device 11 | 1 . 1 1 2 1 . . 5 Storage 5 | 1 2 1 . . . . . 1 Processor 2 | . . . . 1 . 1 . . Hackware 1 | . . . 1 . . . . . Protection 8 | . . 2 1 1 1 . . 3 Artifact . | . . . . . . . . . Weapon 34 | 2 8 8 2 10 . 1 1 2 Energy Gun 6 | . . 2 1 . . 1 . 2 Energy Cannon 3 | . . 3 . . . . . . Ballistic Gun 10 | 2 4 . 1 3 . . . . Ballistic Cannon 2 | . 2 . . . . . . . Launcher 6 | . 2 1 . 2 . . 1 . Special Weapon 2 | . . 1 . 1 . . . . Impact Weapon 2 | . . . . 2 . . . . Slashing Weapon 2 | . . . . 2 . . . . Piercing Weapon 1 | . . 1 . . . . . . Special Melee Weapon . | . . . . . . . . . Unidentified Prototypes 16 | . . 1 1 3 . . . 11 Parts Lost 13 | . 1 . . 8 1 . 1 2 Power 2 | . 1 . . 1 . . . . Propulsion 5 | . . . . 3 1 . 1 . Utility 2 | . . . . 1 . . . 1 Weapon 4 | . . . . 3 . . . 1 Highest Loss Streak 7 | . 1 . . 7 1 . 1 1 To Critical Strikes 1 | . . . . . . . 1 . Average Backups 8 | . 7 13 11 4 4 5 4 4 Power . | . . . . . . . . . Propulsion 1 | . 2 2 1 . . . . . Utility 3 | . . 4 5 2 2 2 2 2 Weapon 2 | . 3 4 2 . 1 2 1 1 Tool/Special . | . . . . . . . . . Unused Backups 28 | . 5 7 11 3 . . . 2 Power 1 | . . . 1 . . . . . Propulsion 5 | . . 1 4 . . . . . Utility 11 | . . 2 5 2 . . . 2 Weapon 10 | . 5 4 . 1 . . . . Tool/Special 1 | . . . 1 . . . . . Average Slot Usage (%) 62 | . 97 79 54 51 53 52 58 53 Engine 7 | . 12 12 12 6 5 . . . Core 1 | . . . . . 1 7 7 1 Treads 1 | . . . . 1 . . 10 1 Leg 5 | . . 5 9 1 6 7 2 6 Wheel 5 | . 28 13 2 . . . . . Device 11 | . 13 9 5 13 19 18 15 16 Storage 5 | . 14 12 6 . . . . . Processor 2 | . . . . 5 2 4 7 1 Hackware 1 | . . . 6 . . . . . Protection 1 | . . 1 4 . . . . 4 Energy Gun 1 | . . 2 . 3 . . . . Energy Cannon 5 | . . 17 2 1 1 . 5 . Ballistic Gun 3 | . 15 4 3 4 . . . . Ballistic Cannon 2 | . 11 . . . 5 7 1 7 Impact Weapon 1 | . . . . 4 7 6 2 2 Peak Build Rating 84 | 7 11 44 46 62 64 64 68 84 Average Rating 44 | 5 8 23 38 48 58 63 63 75 On Entrance 38 | . 7 11 44 29 62 64 63 66 Avg Prop Armor Cover (%) 10 | . . . . . . . 12 9 Naked Turns . | . . . . . . . . . Heaviest Build 219 | 12 30 219 219 34 33 36 35 50 Greatest Support 100 | 26 26 55 55 66 40 40 58 100 Greatest Overweight (x) 3 | 1 1 3 3 1 1 . 1 1 Average Overweight (x) . | . . . 1 . . . . . Largest Inventory Capacity 35 | 8 15 35 35 15 5 5 5 5 Average Capacity 12 | 7 11 18 23 5 5 5 5 5 Most Carried 35 | 3 12 31 35 6 5 5 5 5 Average Carried 11 | . 7 17 22 4 4 5 4 4 Final Capacity 35 | 8 15 35 5 5 5 5 5 5 Final Carried 31 | 2 12 31 5 5 5 5 4 5 Scrap Engine Consumption 153 | . . . 46 60 7 7 13 20 Constructs Created 8 | . . . 4 4 . . . . Constructs Modified 56 | . . . 14 19 4 1 8 10 Class Distribution -------------------- 54% | Construct 26% | Mutant 18% | Hauler-Mutant Dominant Class ---------------- Mutant | -10/Materials Mutant | -10/Subcaves Hauler-Mutant | -9/Recycling Construct | -7/Factory Construct | -7/Lower Caves Construct | -7/Lower Caves Construct | -7/Zion Construct | -7/Deep Caves Resources | -11 -10 -10 -9 -7 -7 -7 -7 -7 ----------- Run | Yrd Mat Sub Rec Fac Low Low Zio Dee Matter Collected 3595 | 298 496 466 214 448 138 106 1189 240 Remotely . | . . . . . . . . . Salvage Created 4342 | 42 655 109 170 825 282 256 1435 568 Parts 293 | 11 58 10 4 33 19 13 107 38 Haulers Intercepted 6 | . 2 . . 4 . . . . Recyclers Shooed . | . . . . . . . . . Parts Field Recycled . | . . . . . . . . . Retrieved Matter . | . . . . . . . . . Parts Self-Destructed 39 | . . 12 . . 17 10 . . Prevented 3 | . . . . . . 3 . . Parts Restored . | . . . . . . . . . Kills | -11 -10 -10 -9 -7 -7 -7 -7 -7 ------- Run | Yrd Mat Sub Rec Fac Low Low Zio Dee Combat Hostiles Destroyed 56 | . 18 1 . 11 5 6 6 9 Melee 1 | . . . . 1 . . . . Guns 14 | . 7 1 . 6 . . . . Cannons 24 | . 2 . . . 5 2 6 9 AOE 13 | . 9 . . . . 4 . . Classes Destroyed 20 | 1 7 3 1 3 1 . 3 1 Worker 5 | . 4 . . 1 . . . . Tunneler 4 | 3 . . . 1 . . . . Hauler 6 | . 2 . . 4 . . . . Recycler 2 | . . . 2 . . . . . Mechanic 1 | . 1 . . . . . . . Operator 2 | . 1 . . 1 . . . . Watcher 4 | . 2 . . 2 . . . . Swarmer 9 | . 6 . . . . 3 . . Grunt 23 | . 12 . . 5 4 2 . . Sentry 3 | . . . . 2 . 1 . . Hunter 1 | . . . . 1 . . . . Programmer 3 | . . . . 3 . . . . Behemoth 1 | . . . . . 1 . . . Artisan 1 | . . 1 . . . . . . Cobbler 1 | . . 1 . . . . . . Subdweller 1 | . . 1 . . . . . . Zionite 50 | . . . . . . . 50 . Z-Light 8 | . . . . . . . . 8 Tinkerer 4 | . . . . . . . 4 . Surgeon 1 | . . . . . . . 1 . Thug 2 | . . . . . . . 2 . Marauder 2 | . . . . . . . 2 . Mutant 2 | . . . . . . . 2 . Best Kill Streak 7 | 2 6 1 2 4 4 5 7 6 Combat Bots Only 6 | . 4 1 . 4 4 5 1 6 Max Kills in Single Turn 2 | 1 2 1 1 1 1 2 2 1 Gunslinging . | . . . . . . . . . Exploded 2 | . 2 . . . . 2 . . Melee 1 | . . . . 1 . . . . Uniques/NPCs Destroyed 1 | . . . . . . . . 1 Z-Imprinter (-7/Deep Caves) Combat | -11 -10 -10 -9 -7 -7 -7 -7 -7 -------- Run | Yrd Mat Sub Rec Fac Low Low Zio Dee Hostile Shots Fired 622 | . 39 8 7 365 65 34 58 46 Missed 228 | . 17 2 1 135 24 16 16 17 Hits 394 | . 22 6 6 230 41 18 42 29 Projectile 394 | . 22 6 6 230 41 18 42 29 AOE 1 | . . 1 . . . . . . Critical Strikes 10 | . . . 2 3 . 1 4 . Damage Taken 4794 | . 349 221 113 2082 632 146 492 759 Core 925 | . 45 86 65 525 18 6 120 60 Absorbed by Shields 920 | . . . 20 201 72 47 365 215 Ignored by Resistances 9 | . . . . 9 . . . . Regen/Repaired (Parts) 1398 | . . . 9 626 179 103 383 98 Core Remaining (%) 60 | 100 . . 21 . . . . . Volleys Fired 586 | 13 55 39 4 71 33 9 328 34 Largest 2 | 2 2 2 2 2 1 1 1 1 Hottest 160 | 40 60 160 90 86 44 44 45 45 Shots Fired 672 | 26 100 47 5 91 33 8 328 34 Gun 221 | 26 74 31 2 88 . . . . Cannon 345 | . 16 13 3 3 33 4 239 34 Launcher 104 | . 10 1 . . . 4 89 . Special 2 | . . 2 . . . . . . Kinetic 517 | 26 90 10 4 91 33 4 225 34 Thermal 52 | . . 37 1 . . . 14 . Explosive 99 | . 10 . . . . . 89 . Electromagnetic 4 | . . . . . . 4 . . Robot Hit Streak 17 | 4 7 7 3 16 15 17 13 5 Robot Miss Streak 5 | 2 5 1 2 5 5 2 4 3 Penetration Max . | . . . . . . . . . Secondary Targets 1 | . 1 . . . . . . . Max Gunslinging Chain 1 | . 1 . . . . . . . Shots Hit Robots 332 | 15 56 11 3 85 18 6 120 18 Core Hits 165 | 5 39 4 2 22 12 7 65 9 Critical Kills 1 | . . 1 . . . . . . Critical Parts Destroyed 6 | . . . . 6 . . . . Critical Strikes 8 | . . 1 . 7 . . . . Destroy 1 | . . 1 . . . . . . Smash 7 | . . . . 7 . . . . Melee Attacks 32 | . . . . 32 . . . . Impact 29 | . . . . 29 . . . . Slashing 3 | . . . . 3 . . . . Piercing . | . . . . . . . . . Sneak Attacks 5 | . . . . 5 . . . . Combat Hostiles . | . . . . . . . . . Follow-up Attacks . | . . . . . . . . . Damage Inflicted 13869 | 151 1294 170 108 2536 1057 514 6634 1405 Guns 2103 | 151 501 119 36 1296 . . . . Cannons 8868 | . 160 51 72 . 1057 226 5897 1405 Explosions 1658 | . 633 . . . . 288 737 . Melee 1240 | . . . . 1240 . . . . Ramming . | . . . . . . . . . Kinetic 10240 | 151 661 75 89 1296 1057 226 5280 1405 Thermal 731 | . . 95 19 . . . 617 . Explosive 1370 | . 633 . . . . . 737 . Electromagnetic 288 | . . . . . . 288 . . Impact 1125 | . . . . 1125 . . . . Slashing 115 | . . . . 115 . . . . Piercing . | . . . . . . . . . Highest Corruption 7 | . 2 2 2 7 7 7 7 . Average Corruption 3 | . 2 2 2 5 7 7 7 . Corruption Purged . | . . . . . . . . . Corruption Blocked . | . . . . . . . . . Effects 209 | . 8 37 64 36 35 26 3 . Message Errors 56 | . 2 7 17 11 10 9 . . Matter Fused 57 | . 2 10 21 9 8 5 2 . Heat Flow Errors 21 | . . 5 6 6 2 2 . . Energy Discharges 28 | . 1 4 12 6 4 1 . . Parts Fused 3 | . 1 . . . 1 1 . . Data Loss (minor) 23 | . 1 4 6 1 6 4 1 . Data Loss (major) 7 | . 1 1 1 . 2 2 . . Misfires 3 | . . 3 . . . . . . Alerts 10 | . . 3 1 3 2 1 . . Weapon Failures 1 | . . . . . . 1 . . Overload Shots . | . . . . . . . . . Overflow Damage 1075 | . 7 . . 574 . 17 418 59 Projectiles 473 | . 7 . . . . 1 406 59 Explosions 28 | . . . . . . 16 12 . Melee 574 | . . . . 574 . . . . Knockbacks 32 | . 3 . . 4 1 . 20 4 Impact 4 | . . . . 4 . . . . Kinetic 27 | . 3 . . . 1 . 20 3 Secondary 1 | . . . . . . . . 1 Self-Inflicted Damage 77 | . 41 . . . . . 36 . Shots 5 | . 4 . . . . . 1 . Rammed . | . . . . . . . . . Targets Rammed . | . . . . . . . . . Kicked . | . . . . . . . . . Crushed . | . . . . . . . . . Highest Temperature 279 | . 18 255 254 279 230 220 170 190 Average Temperature 48 | . 5 91 92 87 92 95 31 39 Received Heat Transfer 1040 | . 114 24 64 419 183 31 49 156 Effects 2 | . . . 2 . . . . . Energy Bleed 2 | . . . 2 . . . . . Siege Activations . | . . . . . . . . . Martial Activations . | . . . . . . . . . Shielding Activations . | . . . . . . . . . Robots Disrupted . | . . . . . . . . . Combat Hostiles . | . . . . . . . . . Robots Corrupted 9 | . . . . 9 . . . . Combat Hostiles 4 | . . . . 4 . . . . Parts Fried 6 | . . . . 6 . . . . Impact Corruptions 14 | . . . . 14 . . . . Robots Melted . | . . . . . . . . . Combat Hostiles . | . . . . . . . . . Parts Melted . | . . . . . . . . . Heat Transferred 442 | . . 124 19 . . . 299 . Parts Sabotaged . | . . . . . . . . . Parts Stolen . | . . . . . . . . . Parts Stripped . | . . . . . . . . . Power Chain Reactions . | . . . . . . . . . Alert | -11 -10 -10 -9 -7 -7 -7 -7 -7 ------- Run | Yrd Mat Sub Rec Fac Low Low Zio Dee Maximum Alert Level 2 | . 1 . . 2 . . . . Low Security (%) 91 | 100 85 . 100 77 . . . . Level 1 6 | . 14 . . 15 . . . . Level 2 2 | . . . . 7 . . . . Level 3 . | . . . . . . . . . Level 4 . | . . . . . . . . . Level 5 . | . . . . . . . . . High Security . | . . . . . . . . . Max Security . | . . . . . . . . . Peak Influence 450 | 10 251 . 115 450 . . . . Initial 450 | . . . 15 450 . . . . Average 73 | 1 145 . 10 173 . . . . Influence Increases 2582 | 15 673 159 503 962 135 135 . . Destroy 0b10 Robot/C 1060 | . 360 100 160 220 100 120 . . Destroy 0b10 Robot/NC 125 | 15 50 . 10 50 . . . . Destroy Leader 190 | . 88 . . 82 20 . . . Allied During Kill 118 | . . 59 59 . . . . . Successful Hack 70 | . 26 . 30 14 . . . . Select Force Hacks 270 | . 30 . 240 . . . . . Disable Machine 90 | . 30 . . 60 . . . . Destroy Structure 74 | . 44 . 4 26 . . . . Advance Influence 450 | . . . . 450 . . . . Partial Spotted 15 | . . . . 15 . . . . Lose Combat Pursuer 120 | . 45 . . 45 15 15 . . Influence Decreases 2582 | 15 434 366 535 832 265 60 75 . Entered New Map 256 | . . 115 17 . 49 . 75 . Time Decay 2021 | 15 424 251 443 612 216 60 . . Search Patrol Dispatched 100 | . . . . 100 . . . . Lost Part 90 | . 10 . . 80 . . . . Lost Ally 115 | . . . 75 40 . . . . Squads Dispatched 12 | . 6 . . 6 . . . . Investigation 5 | . 4 . . 1 . . . . Extermination 4 | . . . . 4 . . . . Reinforcement 3 | . 2 . . 1 . . . . Assault . | . . . . . . . . . Garrison . | . . . . . . . . . Intercept . | . . . . . . . . . Searches Triggered 1 | . . . . 1 . . . . Construction Impeded . | . . . . . . . . . Haulers Reinforced 1 | . . . . 1 . . . . Active Scanning Responses . | . . . . . . . . . Cargo Convoy Interrupts . | . . . . . . . . . Stealth | -11 -10 -10 -9 -7 -7 -7 -7 -7 --------- Run | Yrd Mat Sub Rec Fac Low Low Zio Dee Distress Signals 3 | . 1 . 1 1 . . . . Communications Jammed . | . . . . . . . . . Distress Signals . | . . . . . . . . . Times Spotted 150 | . 27 16 8 18 6 7 58 10 Peak Tracking Total 5 | . 4 2 4 5 4 5 3 5 Tactical Retreats 11 | . 1 . . 3 1 1 5 . Traps | -11 -10 -10 -9 -7 -7 -7 -7 -7 ------- Run | Yrd Mat Sub Rec Fac Low Low Zio Dee Traps Triggered 9 | . 3 1 . 5 . . . . Indirectly . | . . . . . . . . . Trap Hack Attempts . | . . . . . . . . . Triggered . | . . . . . . . . . Disarmed . | . . . . . . . . . Reprogrammed . | . . . . . . . . . Reused . | . . . . . . . . . Traps Extracted . | . . . . . . . . . Installed . | . . . . . . . . . Triggered . | . . . . . . . . . Most Traps Carried 1 | . . 1 . . . . . . Machines | -11 -10 -10 -9 -7 -7 -7 -7 -7 ---------- Run | Yrd Mat Sub Rec Fac Low Low Zio Dee Machines Disabled 16 | . 2 5 . 4 . . 5 . Max in Single Turn 1 | . 1 1 . 1 . . 1 . Garrison Access 1 | . . . . 1 . . . . Machines Repaired . | . . . . . . . . . Machines Dismantled . | . . . . . . . . . Machines Sabotaged . | . . . . . . . . . Overloaded Fab Kills . | . . . . . . . . . Hacking | -11 -10 -10 -9 -7 -7 -7 -7 -7 --------- Run | Yrd Mat Sub Rec Fac Low Low Zio Dee Machines Accessed 33 | . 7 4 15 7 . . . . Terminals 15 | . 4 . 6 5 . . . . Fabricators 1 | . . . . 1 . . . . Repair Stations 1 | . 1 . . . . . . . Recycling Units 10 | . 2 . 8 . . . . . Scanalyzers . | . . . . . . . . . Garrison Access 1 | . . . . 1 . . . . Total Hacks 81 | . 16 6 44 15 . . . . Successful 42 | . 5 6 28 3 . . . . Failed 39 | . 11 . 16 12 . . . . Catastrophic 3 | . 2 . . 1 . . . . Database Lockouts . | . . . . . . . . . Manual 37 | . 8 . 24 4 . . 1 . Terminals 38 | . 10 . 18 10 . . . . Fabricators 3 | . . . . 3 . . . . Repair Stations 3 | . 3 . . . . . . . Recycling Units 27 | . 3 . 24 . . . . . Scanalyzers . | . . . . . . . . . Garrison Access 2 | . . . . 2 . . . . Terminal Hacks 13 | . 2 6 4 1 . . . . Record 3 | . . 3 . . . . . . Part Schematic 1 | . . . 1 . . . . . Robot Analysis 1 | . . . 1 . . . . . Open Door 1 | . . 1 . . . . . . Emergency Access Points 1 | . 1 . . . . . . . Alert Level 1 | . . . . 1 . . . . Locate Traps 1 | . 1 . . . . . . . Proto ID Catalog 1 | . . 1 . . . . . . Release Object 3 | . . 1 2 . . . . . Fabricator Hacks . | . . . . . . . . . Repair Station Hacks 1 | . 1 . . . . . . . Refit 1 | . 1 . . . . . . . Recycling Unit Hacks 8 | . . . 8 . . . . . Retrieve Components 8 | . . . 8 . . . . . Scanalyzer . | . . . . . . . . . Garrison Access Hacks 1 | . . . . 1 . . . . Seal Access 1 | . . . . 1 . . . . Unauthorized Hacks 19 | . 2 . 16 1 . . . . Terminals 9 | . 1 . 8 . . . . . Botnet 3 | . . . 3 . . . . . Operators 1 | . 1 . . . . . . . Skim 5 | . . . 5 . . . . . Fabricators 1 | . . . . 1 . . . . Haulers 1 | . . . . 1 . . . . Repair Stations . | . . . . . . . . . Recycling Units 9 | . 1 . 8 . . . . . Tunnel 9 | . 1 . 8 . . . . . Scanalyzers . | . . . . . . . . . Garrison Access . | . . . . . . . . . Data Cores Recovered 1 | . . . . 1 . . . . Used . | . . . . . . . . . Hacking Detections 20 | . 5 . 11 4 . . . . Full Trace Events 6 | . 4 . 1 1 . . . . Feedback Events . | . . . . . . . . . Feedback Blocked . | . . . . . . . . . Robot Schematics Acquired 3 | . . . . . . . 3 . Robots Built . | . . . . . . . . . Authchips . | . . . . . . . . . Time . | . . . . . . . . . Total Robot Build Rating . | . . . . . . . . . Part Schematics Acquired 16 | . . . 1 . . . 15 . Parts Built . | . . . . . . . . . Authchips . | . . . . . . . . . Time . | . . . . . . . . . Total Part Build Rating . | . . . . . . . . . Part Studies Acquired . | . . . . . . . . . Parts Repaired . | . . . . . . . . . Time . | . . . . . . . . . Parts Recycled . | . . . . . . . . . Recycled Matter . | . . . . . . . . . Retrieved Matter . | . . . . . . . . . Retrieved Components 18 | . . . 18 . . . . . Parts Scanalyzed . | . . . . . . . . . Part Schematics Acquired . | . . . . . . . . . Parts Damaged . | . . . . . . . . . Bothacking | -11 -10 -10 -9 -7 -7 -7 -7 -7 ------------ Run | Yrd Mat Sub Rec Fac Low Low Zio Dee Used RIF Installer . | . . . . . . . . . Robots Hacked . | . . . . . . . . . Non-combat . | . . . . . . . . . Combat . | . . . . . . . . . Robot Hacks Applied . | . . . . . . . . . Relay Couplers Released . | . . . . . . . . . Fabnet Peak Effective % . | . . . . . . . . . Robots Rewired 3 | . . . 3 . . . . . Allies Hacked 1 | . . . 1 . . . . . Hacks Repelled . | . . . . . . . . . Allies | -11 -10 -10 -9 -7 -7 -7 -7 -7 -------- Run | Yrd Mat Sub Rec Fac Low Low Zio Dee Total Allies 20 | . . 15 3 . . . 2 . Largest Group 13 | . . 13 11 3 . . 2 2 Highest-Rated Group 247 | . . 247 209 65 . . 192 185 Highest-Rated Ally 96 | . . 19 27 27 . . 96 96 Total Orders . | . . . . . . . . . Ally Attacks 159 | . . 31 66 3 . . 53 6 Total Damage 4223 | . . 729 1393 477 . . 1438 186 Kills 33 | . . 5 15 2 . . 11 . Allies Corrupted . | . . . . . . . . . Allies Melted . | . . . . . . . . . Intel | -11 -10 -10 -9 -7 -7 -7 -7 -7 ------- Run | Yrd Mat Sub Rec Fac Low Low Zio Dee Active Infowar (turns) 4730 | 14 1053 373 . 1637 1351 302 . . Sensors 3290 | . . . . 1637 1351 302 . . Seismic 1440 | 14 1053 373 . . . . . . Robot Analysis Total 1 | . . . 1 . . . . . Derelict Logs Recovered 4 | . . 2 . . 1 1 . . Drone Launches . | . . . . . . . . . Drone Recoveries . | . . . . . . . . . Exploration | -11 -10 -10 -9 -7 -7 -7 -7 -7 ------------- Run | Yrd Mat Sub Rec Fac Low Low Zio Dee Turns Passed 18182 | 97 1054 4040 4252 2004 1388 746 2731 1870 Spaces Moved 10016 | 53 718 2672 1756 1452 949 473 1070 873 Core 147 | 1 . . 1 145 . . . . Treads 1141 | . . . . 293 . . 789 59 Legs 5082 | . . 1203 1363 375 875 473 281 512 Wheels 2631 | 52 718 1469 392 . . . . . Hover 302 | . . . . . . . . 302 Flight 713 | . . . . 639 74 . . . Fastest Speed 50 | 50 90 90 50 50 67 151 151 118 Average Speed 138 | 88 98 133 190 97 118 151 160 144 Slowest Speed 340 | 95 105 340 340 164 151 151 260 260 Overloaded Moves . | . . . . . . . . . Propulsion Burnouts . | . . . . . . . . . Robots Hopped 4 | . . . . 3 1 . . . Potential Cave-ins . | . . . . . . . . . Cave-ins Triggered . | . . . . . . . . . Exploration Rate (%) 67 | 3 98 96 98 37 73 60 71 68 Regions Visited 8 Branch Regions 6 Pre-discovered Areas 11 | . 1 2 8 . . . . . Known Exits Taken 2 | . . . . 1 1 . . . Unknown Exits Taken 6 | 1 1 1 1 . . 1 1 . Scrap Searched 30 | . . 18 . . 3 7 2 . Spaces Dug 57 | . . 9 . 13 14 . 16 5 Terrain Destroyed 384 | . 45 11 . 13 22 2 275 16 Melee 9 | . . . . 9 . . . . Projectile 74 | . . 2 . 4 22 2 28 16 AOE 301 | . 45 9 . . . . 247 . Terrain Rammed . | . . . . . . . . . Walls Destroyed . | . . . . . . . . . Machines Disabled . | . . . . . . . . . Actions | -11 -10 -10 -9 -7 -7 -7 -7 -7 --------- Run | Yrd Mat Sub Rec Fac Low Low Zio Dee Total 13555 | 76 971 3093 2666 1889 1173 494 1743 1450 Wait 2606 | . 145 314 837 287 182 5 342 494 Move 10000 | 52 717 2671 1755 1445 946 472 1069 873 Hop 4 | . . . . 3 1 . . . Pick Up 58 | 3 17 16 11 6 2 . . 3 Fast Attach 57 | 7 8 5 2 13 . 3 1 18 Attach 14 | . 1 5 3 2 . . 1 2 Detach 12 | . 2 4 3 1 . . . 2 Swap 49 | . 9 19 . 8 7 2 1 3 Drop 89 | 1 17 20 14 11 1 3 1 21 Fire 586 | 13 55 39 4 71 33 9 328 34 Melee 32 | . . . . 32 . . . . Ram . | . . . . . . . . . Kick . | . . . . . . . . . Crush . | . . . . . . . . . Escape Stasis 8 | . . . . 8 . . . . Rewire 36 | . . . 36 . . . . . Trap . | . . . . . . . . . Miscellaneous 4 | . . . 1 2 1 . . . Route ------- -11/Scrapyard -10/Materials (discovered 6 exits: [*Mat x3] / [*Min x2] / *Sub) -10/Subcaves (discovered 3 exits: [*Mat x2] / *Rec) -9/Recycling -7/Factory (discovered 3 exits: *Fac / *Low x2) -7/Lower Caves -7/Lower Caves -7/Zion (discovered 2 exits: [*Dee] / [*Pro]) -7/Deep Caves (discovered 1 exit: [*Pro]) History --------- Turn | Location | Event 16 | -11/Scrapyard | Discovered new exit (range 16) 98 | -11/Scrapyard | Entered Materials 98 | -10/Materials | Discovered new exit (range 14) 249 | -10/Materials | Discovered new exit (range 9) 314 | -10/Materials | Build established: Mutant 606 | -10/Materials | Discovered new exit (range 16) 938 | -10/Materials | Discovered new exit (range 13) 1085 | -10/Materials | Discovered new exit (range 15) 1145 | -10/Materials | Discovered new exit (range 8) 1152 | -10/Materials | Entered Subcaves 1153 | -10/Subcaves | Approached by a straggling Scientist 1234 | -10/Subcaves | Discovered new exit (range 8) 1380 | -10/Subcaves | Visited triangular shrine 1387 | -10/Subcaves | Found Prototype Device 1387 | -10/Subcaves | Identified V3-11A's Pendant 1403 | -10/Subcaves | Befriended Subdweller 1481 | -10/Subcaves | Befriended Subdweller 1486 | -10/Subcaves | Befriended Subdweller 1486 | -10/Subcaves | Befriended Subdweller 1496 | -10/Subcaves | Befriended Subdweller 1550 | -10/Subcaves | Learned location of Zion (-7) 1685 | -10/Subcaves | Discovered new exit (range 8) 2011 | -10/Subcaves | Befriended Subdweller 2011 | -10/Subcaves | Befriended Subdweller 2031 | -10/Subcaves | Befriended Subdweller 2398 | -10/Subcaves | Befriended Subdweller 2726 | -10/Subcaves | Befriended Subdweller 2726 | -10/Subcaves | Befriended Subdweller 2849 | -10/Subcaves | Shifting Twisted Machinery released Spk. Treads 2850 | -10/Subcaves | Shifting Twisted Machinery released Battle Rifle 2858 | -10/Subcaves | Shifting Twisted Machinery released Unknown Ballistic Cannon 2859 | -10/Subcaves | Shifting Twisted Machinery released Humpback 2888 | -10/Subcaves | Core integrity fell below 50% 2972 | -10/Subcaves | Met a Zionite searching for "candidates" 3023 | -10/Subcaves | Visited 4L-MR0's lab 3023 | -10/Subcaves | Befriended Subdweller 3023 | -10/Subcaves | Befriended Subdweller 3023 | -10/Subcaves | Befriended Subdweller 3037 | -10/Subcaves | Found Cargo Legs 3038 | -10/Subcaves | Attached Cargo Legs, gained temporary slots: Utility x2 3565 | -10/Subcaves | Disturbed a concealed Subdweller 3568 | -10/Subcaves | Befriended Subdweller 3909 | -10/Subcaves | Discovered new exit (range 10) 4054 | -10/Subcaves | Visited Clippyterm 4058 | -10/Subcaves | Learned Factory fabricator intel 4432 | -10/Subcaves | Found SUBCON Basin 4714 | -10/Subcaves | Build established: Hauler-Mutant 5192 | -10/Subcaves | Entered Recycling 5192 | -9/Recycling | Accompanied by 11 allies 5581 | -9/Recycling | P-60 Hacker assimilated allied QE-ZBW(R) 5627 | -9/Recycling | Lost 6 allies 6169 | -9/Recycling | Scanned before Scraplab entrance 6561 | -9/Recycling | Discovered new exit (range 16) 7661 | -9/Recycling | Entered Scraplab 7705 | -9/Recycling | Angered Scraplab inhabitants 7705 | -9/Recycling | Found Prototype Device 7705 | -9/Recycling | Identified Scrap Engine 7766 | -9/Recycling | Lost 4 allies 8097 | -9/Recycling | Build established: Construct 8752 | -9/Recycling | Released subatomizers from SUBCON Basin 9444 | -9/Recycling | Entered Factory 9444 | -7/Factory | Accompanied by 3 allies 9444 | -7/Factory | Evolved 6 slots: Power x1, Propulsion x2, Utility x2, Weapon x1 9445 | -7/Factory | Loaded intel: 5 fabricator locations 9602 | -7/Factory | Discovered new exit (range 14) 9618 | -7/Factory | Lost 3 allies 9660 | -7/Factory | Core integrity fell below 50% 9697 | -7/Factory | Lost 7 parts (1p2n1u3w) 9706 | -7/Factory | Discovered new exit (range 14) 9844 | -7/Factory | Search patrols dispatched 9890 | -7/Factory | Build established: Mutant 10329 | -7/Factory | Build established: Construct 10966 | -7/Factory | Identified exit to Factory 11042 | -7/Factory | Identified exit to Lower Caves 11154 | -7/Factory | Discovered exit to Lower Caves (range 8) 11448 | -7/Factory | Entered Lower Caves 11494 | -7/Lower Caves | Identified exit to Lower Caves 11628 | -7/Lower Caves | Spotted B-75 Beast 11968 | -7/Lower Caves | Destroyed B-75 Beast 12836 | -7/Lower Caves | Entered another Lower Caves area 13476 | -7/Lower Caves | Attracted the attention of an 0b10 checkpoint 13499 | -7/Lower Caves | Discovered new exit (range 6) 13514 | -7/Lower Caves | Learned Factory emergency access door positions 13582 | -7/Lower Caves | Entered Zion 13658 | -7/Zion | System corruption cleaned by Quarantine Array 13691 | -7/Zion | Discovered new exit (range 15) 13703 | -7/Zion | Given A8's code to call for help 14097 | -7/Zion | Attacked by Zionites 14100 | -7/Zion | Spotted YB-WY3(B) 14119 | -7/Zion | Core integrity fell below 20% 14126 | -7/Zion | Destroyed YB-WY3(B) 14164 | -7/Zion | Destroyed 5V-JQS(B) 15717 | -7/Zion | Enhanced Grunt warped into view, answering call for help 15719 | -7/Zion | Enhanced Grunt warped into view, answering call for help 16294 | -7/Zion | Discovered new exit (range 3) 16294 | -7/Zion | Saw the warning signs outside the Deep Caves entrance 16313 | -7/Zion | Entered Deep Caves 16313 | -7/Deep Caves | Accompanied by 2 allies 16552 | -7/Deep Caves | Attacked by Z-Imprinter 16558 | -7/Deep Caves | Destroyed Z-Imprinter 16611 | -7/Deep Caves | Found Prototype Protection 16611 | -7/Deep Caves | Identified Zio. Weapon Casing 16623 | -7/Deep Caves | Found Prototype Device 16623 | -7/Deep Caves | Identified Zio. Metafield Generator 16647 | -7/Deep Caves | Z-Facility disabled 17036 | -7/Deep Caves | Found Prototype Protection 17036 | -7/Deep Caves | Identified Zio. Heavy Carapace 17315 | -7/Deep Caves | Discovered new exit (range 7) 18126 | -7/Deep Caves | Spotted Golem 18183 | -7/Deep Caves | Destroyed by Golem with Assembled Focal Cannon Last Messages --------------- Max Integrity -475, Move Heat -2. 17782_ Arm. Scrap Engine consumes Zio. Composite Leg I. 17817_ Scrap Engine modifies Hovering Glidesys-Titanium Exoskeleton: Support +28, Time/Move +25 Renamed Composite-Glidesys Exoskeleton. 17818_ Arm. Scrap Engine consumes Zio. Composite Leg I. 17963_ Scrap Engine modifies Composite-Glidesys Exoskeleton: Energy -1, Move Heat -2 Renamed Hovering Glidesys Exoskeleton. 17964_ Acquired 10 matter. 17990_ Acquired Zio. Phaser-S. 18109_ Slug penetrates Wall. 18128_ Golem: "DSI9AT1D G8OHIBQ29FWG 26R186 QD12WHW8W33 TDK1 81FTS" 18130_ Zio. Light Carapace destroyed. 18180_ Proton Missile Launcher destroyed. Map ----- +----------------------------------------------------+ | | | | | | | | | | | | | | | | | ?????????????????????????????????????????????????? | | ?????????????????????????????????????????????????? | | #????????????????###?????????????????????????????? | | ##?????????##### ##??????????????????????###???? | | ########### #???????????????????### #???? | | #??????????????????## #???? | | ##????????????????### #????? | | ###### ##????????????????## #????? | | #????# ##???????####??##### ##????? | | ##????# ###???????## ##?# #?????? | | ##?????# #?????????# #?# ##????? | | #??????# #?????????# #?# ##???? | | ######?# ######????# ##### ##??? | | ## ### ##???## ##?##### ##?# | | "# #????# ####??## #?# | | # ##??## ##### #?# | | ## #### #?# | | ?# @ #?? | | ?# ##?? | | ## ####??? | | # ##?????? | | # ### ######??# | | # ##?# ### ##?# | | ## ## ###?## ## ### | | ### ### ######??## "" | | ##?#### #?# #??????## ## | | # #?????# ## ??????# #? | | ## #????## ?????# #? | | ?# #????# ????# ##? | | ?# ##????# ????# ##### #####?? | | ?# #?????## #??### ##??# #?????? | | ?# ###????# #### #??# #?????# | | ?# #???## ### ## #??# #?????# | | ?# #???# #########< # ###??# #?????# | | ?### #???# #??????########????# #????## | | ???# #????# #?????#####????????# ###### | | ???# #????# #???### #????????# | | ??## ##????# ###### #????????# | | ### ##?????# #????????## | | ##????# ##???????# ###### | | ###### ########## ##??????# ##????# | | #### #????????## ##????## #?????## | +----------------------------------------------------+ Best States ------------- Heat Dissipation 34 Energy Generation 34 Energy Capacity 757 Matter Stores 300 Matter Capacity 300 Sight Range 16 Robot Scan Range 15 Terrain Scan Density 10 Armor Coverage 400 Resistance: TH 15 Phase Shifting 15 Evasion (%) 70 Targeting Accuracy 6 Recoil Reduction 4 Offensive Hacking 10 Authchip Count 3 Item Schematics ----------------- Imp. Power Shielding | -9/Recycling | Hacked Adv. Sensor Array | -7/Zion | Archive Adv. Terrain Scan Processor | -7/Zion | Archive Magnetic Acceleration Cannon | -7/Zion | Archive Adv. ECM Suite | -7/Zion | Archive Lrn. Tractor Beam | -7/Zion | Archive Imp. Transmission Jammer | -7/Zion | Archive Recalibrator | -7/Zion | Archive Plasma Rifle | -7/Zion | Archive Corruption Screen | -7/Zion | Archive Lgt. Angular Momentum Engine | -7/Zion | Archive Hvy. Laser | -7/Zion | Archive HERF Cannon | -7/Zion | Archive Imp. Medium Armor Plating | -7/Zion | Archive Coolant Injector | -7/Zion | Archive Imp. Core Shielding | -7/Zion | Archive Robot Schematics ------------------ L-41 Fighter | -7/Zion | Archive S-27 Virus | -7/Zion | Archive Y-54 Guardian | -7/Zion | Archive Fabricated ------------ Nothing Repaired ---------- Nothing Studied --------- None Alien Tech Used ----------------- None Achievements -------------- None Challenges ------------ None Game ------ Seed BeamDecoyPropulsion Manual? 0 Play Time 01:50:41 Cumulative 596.0 hours Start 2026.02.25 @ 20:58:40 End 2026.02.26 @ 22:46:37 Sessions 1 Manual Loads 0 Difficulty Rogue Special Mode None Game No. 199 Rogue 199 Adventurer 0 Explorer 0 Win Type - Total 20 Types 8/0/6/1/1/0/0/1/1/2 Lore% 91 Gallery% 85 Achievement% 77 Wizard Run 0 Options --------- Layout 1 ASCII 0 Keyboard 0 Movement Mouse Keybinds 0 Fullscreen 2 Font 32/SmallcapsGlow Map View 50x35 Zoom Use 0% Tactical HUD 1 Map Filters NONE Filters NONE Steam 1 RUN: 748f5026-c0ce-4834-b7ee-127ab098d206